{"text_format":"1","workbook":"xlsx","n_sheets":3,"sheets":["Produktionsanlæg","Distributionsanlæg","Fællesfunktionsanlæg"],"not_rendered":{"charts":0,"images":0,"macros":1,"external_links":0,"defined_names":2,"comments":0,"pivot_tables":0},"unopened":[],"bounds":{"document_bytes":16777216,"sheet_cells":100000,"rows_first":2000,"rows_last":500,"rows_between":2000,"halvings":0,"cell_chars":16384,"cell_head_chars":4096},"cells_cut":0,"cells_raw":0,"read":"whole","date_system":"1900"}

{"sheet":"Produktionsanlæg","index":0,"n_rows":552,"n_cols":9,"rows_kept":552,"cut":false,"hidden":false,"merged":[[0,0,1,0],[0,1,1,1],[0,2,1,2],[0,3,1,3],[0,8,1,8],[0,4,1,4],[0,5,1,5],[0,6,1,6],[0,7,1,7]]}
["Produktionsanlæg","Enhed","Standard-levetid","Samlet mængde per 31/12-2022","Samlet mængde per 31/12-2023","Samlet mængde per 31/12-2024","Afvigelse 2022-2023","Afvigelse 2023-2024","Bemærkninger"]
[]
["Renseanlæg 1",null,null,null,null,null,{"$f":"IF(D3=\"\",IF(E3>0,\"Ny data\",IF(E3=\"\",\"\",0)),IF(D3=0,IF(E3=0,0,\"Ny data\"),(E3-D3)/D3))","v":""},{"$f":"IF(E3=\"\",IF(F3>0,\"Ny data\",IF(F3=\"\",\"\",0)),IF(E3=0,IF(F3=0,0,\"Ny data\"),(F3-E3)/E3))","v":""}]
["Mindre renseanlæg",null,null,null,null,null,"",""]
["Mindre renseanlæg < 5.000 PE","PE",40,0,0,null,0,0]
["Renseanlæg >= 5.000 PE, Vandbehandling",null,null,null,null,null,"",""]
["Indløb med riste, Konstruktioner","PE",60,36000,36000,36000,0,0]
["Indløb med riste, Mek/EL","PE",20,36000,36000,36000,0,0]
["Indløb med riste, SRO","PE",10,36000,36000,36000,0,0]
["Sand- og fedtfang, Kontruktioner","PE",60,36000,36000,36000,0,0]
["Sand- og fedtfang, Mek/EL","PE",20,36000,36000,36000,0,0]
["Sand- og fedtfang, SRO","PE",10,36000,36000,36000,0,0]
["Forklaring, Konstruktioner","PE",60,0,0,0,0,0]
["Forklaring, Mek/EL","PE",20,0,0,0,0,0]
["Forklaring, SRO","PE",10,0,0,0,0,0]
["Beluftningstanke, Konstruktioner","PE",60,36000,36000,36000,0,0]
["Beluftningstanke, Mek/EL","PE",20,36000,36000,36000,0,0]
["Beluftningstanke, SRO","PE",10,36000,36000,36000,0,0]
["Efterklaringstanke, Konstruktioner","PE",60,36000,36000,36000,0,0]
["Efterklaringstanke, Mek/El","PE",20,36000,36000,36000,0,0]
["Efterklaringstanke, SRO","PE",10,36000,36000,36000,0,0]
["Efterbehandlingsanlæg (sandfilter), Konstruktioner","PE",60,0,0,0,0,0]
["Efterbehandlingsanlæg (sandfilter), Mek/EL","PE",20,0,0,0,0,0]
["Efterbehandlingsanlæg (sandfilter), SRO","PE",10,0,0,0,0,0]
["Renseanlæg >= 5.000 PE, Slambehandling",null,null,null,null,null,"",""]
["Forafvanding, slam, Konstruktion","PE",60,0,0,0,0,0]
["Forafvanding, slam, Mek/EL","PE",20,0,0,0,0,0]
["Forafvanding, slam, SRO","PE",10,0,0,0,0,0]
["Rådnetanke, slam, Konstruktioner","PE",60,0,0,0,0,0]
["Rådnetanke, slam, Mek/EL","PE",20,0,0,0,0,0]
["Rådnetanke, slam, SRO","PE",10,0,0,0,0,0]
["Gasdisponering, Konstruktioner","PE",60,0,0,0,0,0]
["Gasdisponering, Mek/EL","PE",20,0,0,0,0,0]
["Gasdisponering, SRO","PE",10,0,0,0,0,0]
["Gasdisponering - elproduktionsanlæg, Konstruktioner","PE",60,0,0,0,0,0]
["Gasdisponering - elproduktionsanlæg, Mek/EL","PE",20,0,0,0,0,0]
["Gasdisponering - elproduktionsanlæg, SRO","PE",10,0,0,0,0,0]
["Gasrensning - Aktivt kulfilter","m3/t",15,0,0,0,0,0]
["Gasrensning - Biologisk skrubber","m3/t",15,0,0,0,0,0]
["Opgraderingsanlæg - Membran","m3/t",15,0,0,0,0,0]
["Varmeproduktionsanlæg","m3/t",15,0,0,0,0,0]
["Slutafvanding, slam - lavteknologisk (slambede), Konstruktioner","PE",60,0,0,0,0,0]
["Slutafvanding, slam - lavteknologisk (slambede), Mek/EL","PE",20,0,0,0,0,0]
["Slutafvanding, slam - lavteknologisk (slambede), SRO","PE",10,0,0,0,0,0]
["Slutafvanding, slam - højteknologisk (centrifuger), Konstruktioner","PE",60,36000,36000,36000,0,0]
["Slutafvanding, slam - højteknologisk (centrifuger), Mek/El","PE",20,36000,36000,36000,0,0]
["Slutafvanding, slam - højteknologisk (centrifuger), SRO","PE",10,36000,36000,36000,0,0]
["Renseanlæg >= 5.000 PE, Slamdisponering",null,null,null,null,null,"",""]
["Slutdisponering, slam - lavteknologisk (slammineralisering), Konstruktioner","PE",60,0,0,0,0,0]
["Slutdisponering, slam - lavteknologisk (slammineralisering), Mek/EL","PE",20,0,0,0,0,0]
["Slutdisponering, slam - lavteknologisk (slammineralisering), SRO","PE",10,0,0,0,0,0]
["Slutdisponering, slam - højteknologisk (slamtørring), Konstruktioner","PE",60,0,0,0,0,0]
["Slutdisponering, slam - højteknologisk (slamtørring), Mek/EL","PE",20,0,0,0,0,0]
["Slutdisponering, slam - højteknologisk (slamtørring), SRO","PE",10,0,0,0,0,0]
["Slutdisponering, slam - højteknologisk (slamtørring og -forbrænding), Konstruktioner","PE",60,0,0,0,0,0]
["Slutdisponering, slam - højteknologisk (slamtørring og -forbrænding), Mek/EL","PE",20,0,0,0,0,0]
["Slutdisponering, slam - højteknologisk (slamtørring og -forbrænding), SRO","PE",10,0,0,0,0,0]
["Renseanlæg 2",null,null,null,null,null,"",""]
["Mindre renseanlæg",null,null,null,null,null,"",""]
["Mindre renseanlæg < 5.000 PE","PE",40,168,168,168,0,0]
["Renseanlæg >= 5.000 PE, Vandbehandling",null,null,null,null,null,"",""]
["Indløb med riste, Konstruktioner","PE",60,0,0,0,0,0]
["Indløb med riste, Mek/EL","PE",20,0,0,0,0,0]
["Indløb med riste, SRO","PE",10,0,0,0,0,0]
["Sand- og fedtfang, Kontruktioner","PE",60,0,0,0,0,0]
["Sand- og fedtfang, Mek/EL","PE",20,0,0,0,0,0]
["Sand- og fedtfang, SRO","PE",10,0,0,0,{"$f":"IF(D67=\"\",IF(E67>0,\"Ny data\",IF(E67=\"\",\"\",0)),IF(D67=0,IF(E67=0,0,\"Ny data\"),(E67-D67)/D67))","v":0},{"$f":"IF(E67=\"\",IF(F67>0,\"Ny data\",IF(F67=\"\",\"\",0)),IF(E67=0,IF(F67=0,0,\"Ny data\"),(F67-E67)/E67))","v":0}]
["Forklaring, Konstruktioner","PE",60,0,0,0,0,0]
["Forklaring, Mek/EL","PE",20,0,0,0,0,0]
["Forklaring, SRO","PE",10,0,0,0,0,0]
["Beluftningstanke, Konstruktioner","PE",60,0,0,0,0,0]
["Beluftningstanke, Mek/EL","PE",20,0,0,0,0,0]
["Beluftningstanke, SRO","PE",10,0,0,0,0,0]
["Efterklaringstanke, Konstruktioner","PE",60,0,0,0,0,0]
["Efterklaringstanke, Mek/El","PE",20,0,0,0,0,0]
["Efterklaringstanke, SRO","PE",10,0,0,0,0,0]
["Efterbehandlingsanlæg (sandfilter), Konstruktioner","PE",60,0,0,0,0,0]
["Efterbehandlingsanlæg (sandfilter), Mek/EL","PE",20,0,0,0,0,0]
["Efterbehandlingsanlæg (sandfilter), SRO","PE",10,0,0,0,0,0]
["Renseanlæg >= 5.000 PE, Slambehandling",null,null,null,null,null,"",""]
["Forafvanding, slam, Konstruktion","PE",60,0,0,0,0,0]
["Forafvanding, slam, Mek/EL","PE",20,0,0,0,0,0]
["Forafvanding, slam, SRO","PE",10,0,0,0,0,0]
["Rådnetanke, slam, Konstruktioner","PE",60,0,0,0,0,0]
["Rådnetanke, slam, Mek/EL","PE",20,0,0,0,0,0]
["Rådnetanke, slam, SRO","PE",10,0,0,0,0,0]
["Gasdisponering, Konstruktioner","PE",60,0,0,0,0,0]
["Gasdisponering, Mek/EL","PE",20,0,0,0,0,0]
["Gasdisponering, SRO","PE",10,0,0,0,0,0]
["Gasdisponering - elproduktionsanlæg, Konstruktioner","PE",60,0,0,0,0,0]
["Gasdisponering - elproduktionsanlæg, Mek/EL","PE",20,0,0,0,0,0]
["Gasdisponering - elproduktionsanlæg, SRO","PE",10,0,0,0,0,0]
["Gasrensning - Aktivt kulfilter","m3/t",15,0,0,0,0,0]
["Gasrensning - Biologisk skrubber","m3/t",15,0,0,0,0,0]
["Opgraderingsanlæg - Membran","m3/t",15,0,0,0,0,0]
["Varmeproduktionsanlæg","m3/t",15,0,0,0,0,0]
["Slutafvanding, slam - lavteknologisk (slambede), Konstruktioner","PE",60,0,0,0,0,0]
["Slutafvanding, slam - lavteknologisk (slambede), Mek/EL","PE",20,0,0,0,0,0]
["Slutafvanding, slam - lavteknologisk (slambede), SRO","PE",10,0,0,0,0,0]
["Slutafvanding, slam - højteknologisk (centrifuger), Konstruktioner","PE",60,0,0,0,0,0]
["Slutafvanding, slam - højteknologisk (centrifuger), Mek/El","PE",20,0,0,0,0,0]
["Slutafvanding, slam - højteknologisk (centrifuger), SRO","PE",10,0,0,0,0,0]
["Renseanlæg >= 5.000 PE, Slamdisponering",null,null,null,null,null,"",""]
["Slutdisponering, slam - lavteknologisk (slammineralisering), Konstruktioner","PE",60,0,0,0,0,0]
["Slutdisponering, slam - lavteknologisk (slammineralisering), Mek/EL","PE",20,0,0,0,0,0]
["Slutdisponering, slam - lavteknologisk (slammineralisering), SRO","PE",10,0,0,0,0,0]
["Slutdisponering, slam - højteknologisk (slamtørring), Konstruktioner","PE",60,0,0,0,0,0]
["Slutdisponering, slam - højteknologisk (slamtørring), Mek/EL","PE",20,0,0,0,0,0]
["Slutdisponering, slam - højteknologisk (slamtørring), SRO","PE",10,0,0,0,0,0]
["Slutdisponering, slam - højteknologisk (slamtørring og -forbrænding), Konstruktioner","PE",60,0,0,0,0,0]
["Slutdisponering, slam - højteknologisk (slamtørring og -forbrænding), Mek/EL","PE",20,0,0,0,0,0]
["Slutdisponering, slam - højteknologisk (slamtørring og -forbrænding), SRO","PE",10,0,0,0,0,0]
["Renseanlæg 3",null,null,null,null,null,"",""]
["Mindre renseanlæg",null,null,null,null,null,"",""]
["Mindre renseanlæg < 5.000 PE","PE",40,0,0,0,0,0]
["Renseanlæg >= 5.000 PE, Vandbehandling",null,null,null,null,null,"",""]
["Indløb med riste, Konstruktioner","PE",60,10000,10000,10000,0,0]
["Indløb med riste, Mek/EL","PE",20,10000,10000,10000,0,0]
["Indløb med riste, SRO","PE",10,10000,10000,10000,0,0]
["Sand- og fedtfang, Kontruktioner","PE",60,10000,10000,10000,0,0]
["Sand- og fedtfang, Mek/EL","PE",20,10000,10000,10000,0,0]
["Sand- og fedtfang, SRO","PE",10,10000,10000,10000,0,0]
["Forklaring, Konstruktioner","PE",60,0,0,0,0,0]
["Forklaring, Mek/EL","PE",20,0,0,0,0,0]
["Forklaring, SRO","PE",10,0,0,0,0,0]
["Beluftningstanke, Konstruktioner","PE",60,10000,10000,10000,0,0]
["Beluftningstanke, Mek/EL","PE",20,10000,10000,10000,0,0]
["Beluftningstanke, SRO","PE",10,10000,10000,10000,0,0]
["Efterklaringstanke, Konstruktioner","PE",60,10000,10000,10000,0,0]
["Efterklaringstanke, Mek/El","PE",20,10000,10000,10000,0,0]
["Efterklaringstanke, SRO","PE",10,10000,10000,10000,{"$f":"IF(D131=\"\",IF(E131>0,\"Ny data\",IF(E131=\"\",\"\",0)),IF(D131=0,IF(E131=0,0,\"Ny data\"),(E131-D131)/D131))","v":0},{"$f":"IF(E131=\"\",IF(F131>0,\"Ny data\",IF(F131=\"\",\"\",0)),IF(E131=0,IF(F131=0,0,\"Ny data\"),(F131-E131)/E131))","v":0}]
["Efterbehandlingsanlæg (sandfilter), Konstruktioner","PE",60,0,0,0,0,0]
["Efterbehandlingsanlæg (sandfilter), Mek/EL","PE",20,0,0,0,0,0]
["Efterbehandlingsanlæg (sandfilter), SRO","PE",10,0,0,0,0,0]
["Renseanlæg >= 5.000 PE, Slambehandling",null,null,null,null,null,"",""]
["Forafvanding, slam, Konstruktion","PE",60,0,0,0,0,0]
["Forafvanding, slam, Mek/EL","PE",20,0,0,0,0,0]
["Forafvanding, slam, SRO","PE",10,0,0,0,0,0]
["Rådnetanke, slam, Konstruktioner","PE",60,0,0,0,0,0]
["Rådnetanke, slam, Mek/EL","PE",20,0,0,0,0,0]
["Rådnetanke, slam, SRO","PE",10,0,0,0,0,0]
["Gasdisponering, Konstruktioner","PE",60,0,0,0,0,0]
["Gasdisponering, Mek/EL","PE",20,0,0,0,0,0]
["Gasdisponering, SRO","PE",10,0,0,0,0,0]
["Gasdisponering - elproduktionsanlæg, Konstruktioner","PE",60,0,0,0,0,0]
["Gasdisponering - elproduktionsanlæg, Mek/EL","PE",20,0,0,0,0,0]
["Gasdisponering - elproduktionsanlæg, SRO","PE",10,0,0,0,0,0]
["Gasrensning - Aktivt kulfilter","m3/t",15,0,0,0,0,0]
["Gasrensning - Biologisk skrubber","m3/t",15,0,0,0,0,0]
["Opgraderingsanlæg - Membran","m3/t",15,0,0,0,0,0]
["Varmeproduktionsanlæg","m3/t",15,0,0,0,0,0]
["Slutafvanding, slam - lavteknologisk (slambede), Konstruktioner","PE",60,0,0,0,0,0]
["Slutafvanding, slam - lavteknologisk (slambede), Mek/EL","PE",20,0,0,0,0,0]
["Slutafvanding, slam - lavteknologisk (slambede), SRO","PE",10,0,0,0,0,0]
["Slutafvanding, slam - højteknologisk (centrifuger), Konstruktioner","PE",60,0,0,0,0,0]
["Slutafvanding, slam - højteknologisk (centrifuger), Mek/El","PE",20,0,0,0,0,0]
["Slutafvanding, slam - højteknologisk (centrifuger), SRO","PE",10,0,0,0,0,0]
["Renseanlæg >= 5.000 PE, Slamdisponering",null,null,null,null,null,"",""]
["Slutdisponering, slam - lavteknologisk (slammineralisering), Konstruktioner","PE",60,10000,10000,10000,0,0]
["Slutdisponering, slam - lavteknologisk (slammineralisering), Mek/EL","PE",20,10000,10000,10000,0,0]
["Slutdisponering, slam - lavteknologisk (slammineralisering), SRO","PE",10,10000,10000,10000,0,0]
["Slutdisponering, slam - højteknologisk (slamtørring), Konstruktioner","PE",60,0,0,0,0,0]
["Slutdisponering, slam - højteknologisk (slamtørring), Mek/EL","PE",20,0,0,0,0,0]
["Slutdisponering, slam - højteknologisk (slamtørring), SRO","PE",10,0,0,0,0,0]
["Slutdisponering, slam - højteknologisk (slamtørring og -forbrænding), Konstruktioner","PE",60,0,0,0,0,0]
["Slutdisponering, slam - højteknologisk (slamtørring og -forbrænding), Mek/EL","PE",20,0,0,0,0,0]
["Slutdisponering, slam - højteknologisk (slamtørring og -forbrænding), SRO","PE",10,0,0,0,0,0]
["Renseanlæg 4",null,null,null,null,null,"",""]
["Mindre renseanlæg",null,null,null,null,null,"",""]
["Mindre renseanlæg < 5.000 PE","PE",40,0,0,0,0,0]
["Renseanlæg >= 5.000 PE, Vandbehandling",null,null,null,null,null,"",""]
["Indløb med riste, Konstruktioner","PE",60,6800,6800,6800,0,0]
["Indløb med riste, Mek/EL","PE",20,6800,6800,6800,0,0]
["Indløb med riste, SRO","PE",10,6800,6800,6800,0,0]
["Sand- og fedtfang, Kontruktioner","PE",60,6800,6800,6800,0,0]
["Sand- og fedtfang, Mek/EL","PE",20,6800,6800,6800,0,0]
["Sand- og fedtfang, SRO","PE",10,6800,6800,6800,0,0]
["Forklaring, Konstruktioner","PE",60,0,0,0,0,0]
["Forklaring, Mek/EL","PE",20,0,0,0,0,0]
["Forklaring, SRO","PE",10,0,0,0,0,0]
["Beluftningstanke, Konstruktioner","PE",60,6800,6800,6800,0,0]
["Beluftningstanke, Mek/EL","PE",20,6800,6800,6800,0,0]
["Beluftningstanke, SRO","PE",10,6800,6800,6800,0,0]
["Efterklaringstanke, Konstruktioner","PE",60,6800,6800,6800,0,0]
["Efterklaringstanke, Mek/El","PE",20,6800,6800,6800,0,0]
["Efterklaringstanke, SRO","PE",10,6800,6800,6800,0,0]
["Efterbehandlingsanlæg (sandfilter), Konstruktioner","PE",60,0,0,0,0,0]
["Efterbehandlingsanlæg (sandfilter), Mek/EL","PE",20,0,0,0,0,0]
["Efterbehandlingsanlæg (sandfilter), SRO","PE",10,0,0,0,0,0]
["Renseanlæg >= 5.000 PE, Slambehandling",null,null,null,null,null,"",""]
["Forafvanding, slam, Konstruktion","PE",60,0,0,0,0,0]
["Forafvanding, slam, Mek/EL","PE",20,0,0,0,0,0]
["Forafvanding, slam, SRO","PE",10,0,0,0,0,0]
["Rådnetanke, slam, Konstruktioner","PE",60,0,0,0,0,0]
["Rådnetanke, slam, Mek/EL","PE",20,0,0,0,{"$f":"IF(D195=\"\",IF(E195>0,\"Ny data\",IF(E195=\"\",\"\",0)),IF(D195=0,IF(E195=0,0,\"Ny data\"),(E195-D195)/D195))","v":0},{"$f":"IF(E195=\"\",IF(F195>0,\"Ny data\",IF(F195=\"\",\"\",0)),IF(E195=0,IF(F195=0,0,\"Ny data\"),(F195-E195)/E195))","v":0}]
["Rådnetanke, slam, SRO","PE",10,0,0,0,0,0]
["Gasdisponering, Konstruktioner","PE",60,0,0,0,0,0]
["Gasdisponering, Mek/EL","PE",20,0,0,0,0,0]
["Gasdisponering, SRO","PE",10,0,0,0,0,0]
["Gasdisponering - elproduktionsanlæg, Konstruktioner","PE",60,0,0,0,0,0]
["Gasdisponering - elproduktionsanlæg, Mek/EL","PE",20,0,0,0,0,0]
["Gasdisponering - elproduktionsanlæg, SRO","PE",10,0,0,0,0,0]
["Gasrensning - Aktivt kulfilter","m3/t",15,0,0,0,0,0]
["Gasrensning - Biologisk skrubber","m3/t",15,0,0,0,0,0]
["Opgraderingsanlæg - Membran","m3/t",15,0,0,0,0,0]
["Varmeproduktionsanlæg","m3/t",15,0,0,0,0,0]
["Slutafvanding, slam - lavteknologisk (slambede), Konstruktioner","PE",60,0,0,0,0,0]
["Slutafvanding, slam - lavteknologisk (slambede), Mek/EL","PE",20,0,0,0,0,0]
["Slutafvanding, slam - lavteknologisk (slambede), SRO","PE",10,0,0,0,0,0]
["Slutafvanding, slam - højteknologisk (centrifuger), Konstruktioner","PE",60,0,0,0,0,0]
["Slutafvanding, slam - højteknologisk (centrifuger), Mek/El","PE",20,0,0,0,0,0]
["Slutafvanding, slam - højteknologisk (centrifuger), SRO","PE",10,0,0,0,0,0]
["Renseanlæg >= 5.000 PE, Slamdisponering",null,null,null,null,null,"",""]
["Slutdisponering, slam - lavteknologisk (slammineralisering), Konstruktioner","PE",60,6800,6800,6800,0,0]
["Slutdisponering, slam - lavteknologisk (slammineralisering), Mek/EL","PE",20,6800,6800,6800,0,0]
["Slutdisponering, slam - lavteknologisk (slammineralisering), SRO","PE",10,6800,6800,6800,0,0]
["Slutdisponering, slam - højteknologisk (slamtørring), Konstruktioner","PE",60,0,0,0,0,0]
["Slutdisponering, slam - højteknologisk (slamtørring), Mek/EL","PE",20,0,0,0,0,0]
["Slutdisponering, slam - højteknologisk (slamtørring), SRO","PE",10,0,0,0,0,0]
["Slutdisponering, slam - højteknologisk (slamtørring og -forbrænding), Konstruktioner","PE",60,0,0,0,0,0]
["Slutdisponering, slam - højteknologisk (slamtørring og -forbrænding), Mek/EL","PE",20,0,0,0,0,0]
["Slutdisponering, slam - højteknologisk (slamtørring og -forbrænding), SRO","PE",10,0,0,0,0,0]
["Renseanlæg 5",null,null,null,null,null,"",""]
["Mindre renseanlæg",null,null,null,null,null,"",""]
["Mindre renseanlæg < 5.000 PE","PE",40,0,0,0,0,0]
["Renseanlæg >= 5.000 PE, Vandbehandling",null,null,null,null,null,"",""]
["Indløb med riste, Konstruktioner","PE",60,0,0,0,0,0]
["Indløb med riste, Mek/EL","PE",20,0,0,0,0,0]
["Indløb med riste, SRO","PE",10,0,0,0,0,0]
["Sand- og fedtfang, Kontruktioner","PE",60,0,0,0,0,0]
["Sand- og fedtfang, Mek/EL","PE",20,0,0,0,0,0]
["Sand- og fedtfang, SRO","PE",10,0,0,0,0,0]
["Forklaring, Konstruktioner","PE",60,0,0,0,0,0]
["Forklaring, Mek/EL","PE",20,0,0,0,0,0]
["Forklaring, SRO","PE",10,0,0,0,0,0]
["Beluftningstanke, Konstruktioner","PE",60,0,0,0,0,0]
["Beluftningstanke, Mek/EL","PE",20,0,0,0,0,0]
["Beluftningstanke, SRO","PE",10,0,0,0,0,0]
["Efterklaringstanke, Konstruktioner","PE",60,0,0,0,0,0]
["Efterklaringstanke, Mek/El","PE",20,0,0,0,0,0]
["Efterklaringstanke, SRO","PE",10,0,0,0,0,0]
["Efterbehandlingsanlæg (sandfilter), Konstruktioner","PE",60,0,0,0,0,0]
["Efterbehandlingsanlæg (sandfilter), Mek/EL","PE",20,0,0,0,0,0]
["Efterbehandlingsanlæg (sandfilter), SRO","PE",10,0,0,0,0,0]
["Renseanlæg >= 5.000 PE, Slambehandling",null,null,null,null,null,"",""]
["Forafvanding, slam, Konstruktion","PE",60,0,0,0,0,0]
["Forafvanding, slam, Mek/EL","PE",20,0,0,0,0,0]
["Forafvanding, slam, SRO","PE",10,0,0,0,0,0]
["Rådnetanke, slam, Konstruktioner","PE",60,0,0,0,0,0]
["Rådnetanke, slam, Mek/EL","PE",20,0,0,0,0,0]
["Rådnetanke, slam, SRO","PE",10,0,0,0,0,0]
["Gasdisponering, Konstruktioner","PE",60,0,0,0,0,0]
["Gasdisponering, Mek/EL","PE",20,0,0,0,0,0]
["Gasdisponering, SRO","PE",10,0,0,0,0,0]
["Gasdisponering - elproduktionsanlæg, Konstruktioner","PE",60,0,0,0,0,0]
["Gasdisponering - elproduktionsanlæg, Mek/EL","PE",20,0,0,0,0,0]
["Gasdisponering - elproduktionsanlæg, SRO","PE",10,0,0,0,0,0]
["Gasrensning - Aktivt kulfilter","m3/t",15,0,0,0,0,0]
["Gasrensning - Biologisk skrubber","m3/t",15,0,0,0,{"$f":"IF(D259=\"\",IF(E259>0,\"Ny data\",IF(E259=\"\",\"\",0)),IF(D259=0,IF(E259=0,0,\"Ny data\"),(E259-D259)/D259))","v":0},{"$f":"IF(E259=\"\",IF(F259>0,\"Ny data\",IF(F259=\"\",\"\",0)),IF(E259=0,IF(F259=0,0,\"Ny data\"),(F259-E259)/E259))","v":0}]
["Opgraderingsanlæg - Membran","m3/t",15,0,0,0,0,0]
["Varmeproduktionsanlæg","m3/t",15,0,0,0,0,0]
["Slutafvanding, slam - lavteknologisk (slambede), Konstruktioner","PE",60,0,0,0,0,0]
["Slutafvanding, slam - lavteknologisk (slambede), Mek/EL","PE",20,0,0,0,0,0]
["Slutafvanding, slam - lavteknologisk (slambede), SRO","PE",10,0,0,0,0,0]
["Slutafvanding, slam - højteknologisk (centrifuger), Konstruktioner","PE",60,0,0,0,0,0]
["Slutafvanding, slam - højteknologisk (centrifuger), Mek/El","PE",20,0,0,0,0,0]
["Slutafvanding, slam - højteknologisk (centrifuger), SRO","PE",10,0,0,0,0,0]
["Renseanlæg >= 5.000 PE, Slamdisponering",null,null,null,null,null,"",""]
["Slutdisponering, slam - lavteknologisk (slammineralisering), Konstruktioner","PE",60,0,0,0,0,0]
["Slutdisponering, slam - lavteknologisk (slammineralisering), Mek/EL","PE",20,0,0,0,0,0]
["Slutdisponering, slam - lavteknologisk (slammineralisering), SRO","PE",10,0,0,0,0,0]
["Slutdisponering, slam - højteknologisk (slamtørring), Konstruktioner","PE",60,0,0,0,0,0]
["Slutdisponering, slam - højteknologisk (slamtørring), Mek/EL","PE",20,0,0,0,0,0]
["Slutdisponering, slam - højteknologisk (slamtørring), SRO","PE",10,0,0,0,0,0]
["Slutdisponering, slam - højteknologisk (slamtørring og -forbrænding), Konstruktioner","PE",60,0,0,0,0,0]
["Slutdisponering, slam - højteknologisk (slamtørring og -forbrænding), Mek/EL","PE",20,0,0,0,0,0]
["Slutdisponering, slam - højteknologisk (slamtørring og -forbrænding), SRO","PE",10,0,0,0,0,0]
["Renseanlæg 6",null,null,null,null,null,"",""]
["Mindre renseanlæg",null,null,null,null,null,"",""]
["Mindre renseanlæg < 5.000 PE","PE",40,0,0,0,0,0]
["Renseanlæg >= 5.000 PE, Vandbehandling",null,null,null,null,null,"",""]
["Indløb med riste, Konstruktioner","PE",60,0,0,0,0,0]
["Indløb med riste, Mek/EL","PE",20,0,0,0,0,0]
["Indløb med riste, SRO","PE",10,0,0,0,0,0]
["Sand- og fedtfang, Kontruktioner","PE",60,0,0,0,0,0]
["Sand- og fedtfang, Mek/EL","PE",20,0,0,0,0,0]
["Sand- og fedtfang, SRO","PE",10,0,0,0,0,0]
["Forklaring, Konstruktioner","PE",60,0,0,0,0,0]
["Forklaring, Mek/EL","PE",20,0,0,0,0,0]
["Forklaring, SRO","PE",10,0,0,0,0,0]
["Beluftningstanke, Konstruktioner","PE",60,0,0,0,0,0]
["Beluftningstanke, Mek/EL","PE",20,0,0,0,0,0]
["Beluftningstanke, SRO","PE",10,0,0,0,0,0]
["Efterklaringstanke, Konstruktioner","PE",60,0,0,0,0,0]
["Efterklaringstanke, Mek/El","PE",20,0,0,0,0,0]
["Efterklaringstanke, SRO","PE",10,0,0,0,0,0]
["Efterbehandlingsanlæg (sandfilter), Konstruktioner","PE",60,0,0,0,0,0]
["Efterbehandlingsanlæg (sandfilter), Mek/EL","PE",20,0,0,0,0,0]
["Efterbehandlingsanlæg (sandfilter), SRO","PE",10,0,0,0,0,0]
["Renseanlæg >= 5.000 PE, Slambehandling",null,null,null,null,null,"",""]
["Forafvanding, slam, Konstruktion","PE",60,0,0,0,0,0]
["Forafvanding, slam, Mek/EL","PE",20,0,0,0,0,0]
["Forafvanding, slam, SRO","PE",10,0,0,0,0,0]
["Rådnetanke, slam, Konstruktioner","PE",60,0,0,0,0,0]
["Rådnetanke, slam, Mek/EL","PE",20,0,0,0,0,0]
["Rådnetanke, slam, SRO","PE",10,0,0,0,0,0]
["Gasdisponering, Konstruktioner","PE",60,0,0,0,0,0]
["Gasdisponering, Mek/EL","PE",20,0,0,0,0,0]
["Gasdisponering, SRO","PE",10,0,0,0,0,0]
["Gasdisponering - elproduktionsanlæg, Konstruktioner","PE",60,0,0,0,0,0]
["Gasdisponering - elproduktionsanlæg, Mek/EL","PE",20,0,0,0,0,0]
["Gasdisponering - elproduktionsanlæg, SRO","PE",10,0,0,0,0,0]
["Gasrensning - Aktivt kulfilter","m3/t",15,0,0,0,0,0]
["Gasrensning - Biologisk skrubber","m3/t",15,0,0,0,0,0]
["Opgraderingsanlæg - Membran","m3/t",15,0,0,0,0,0]
["Varmeproduktionsanlæg","m3/t",15,0,0,0,0,0]
["Slutafvanding, slam - lavteknologisk (slambede), Konstruktioner","PE",60,0,0,0,0,0]
["Slutafvanding, slam - lavteknologisk (slambede), Mek/EL","PE",20,0,0,0,0,0]
["Slutafvanding, slam - lavteknologisk (slambede), SRO","PE",10,0,0,0,0,0]
["Slutafvanding, slam - højteknologisk (centrifuger), Konstruktioner","PE",60,0,0,0,0,0]
["Slutafvanding, slam - højteknologisk (centrifuger), Mek/El","PE",20,0,0,0,0,0]
["Slutafvanding, slam - højteknologisk (centrifuger), SRO","PE",10,0,0,0,0,0]
["Renseanlæg >= 5.000 PE, Slamdisponering",null,null,null,null,null,{"$f":"IF(D323=\"\",IF(E323>0,\"Ny data\",IF(E323=\"\",\"\",0)),IF(D323=0,IF(E323=0,0,\"Ny data\"),(E323-D323)/D323))","v":""},{"$f":"IF(E323=\"\",IF(F323>0,\"Ny data\",IF(F323=\"\",\"\",0)),IF(E323=0,IF(F323=0,0,\"Ny data\"),(F323-E323)/E323))","v":""}]
["Slutdisponering, slam - lavteknologisk (slammineralisering), Konstruktioner","PE",60,0,0,0,0,0]
["Slutdisponering, slam - lavteknologisk (slammineralisering), Mek/EL","PE",20,0,0,0,0,0]
["Slutdisponering, slam - lavteknologisk (slammineralisering), SRO","PE",10,0,0,0,0,0]
["Slutdisponering, slam - højteknologisk (slamtørring), Konstruktioner","PE",60,0,0,0,0,0]
["Slutdisponering, slam - højteknologisk (slamtørring), Mek/EL","PE",20,0,0,0,0,0]
["Slutdisponering, slam - højteknologisk (slamtørring), SRO","PE",10,0,0,0,0,0]
["Slutdisponering, slam - højteknologisk (slamtørring og -forbrænding), Konstruktioner","PE",60,0,0,0,0,0]
["Slutdisponering, slam - højteknologisk (slamtørring og -forbrænding), Mek/EL","PE",20,0,0,0,0,0]
["Slutdisponering, slam - højteknologisk (slamtørring og -forbrænding), SRO","PE",10,0,0,0,0,0]
["Renseanlæg 7",null,null,null,null,null,"",""]
["Mindre renseanlæg",null,null,null,null,null,"",""]
["Mindre renseanlæg < 5.000 PE","PE",40,0,0,0,0,0]
["Renseanlæg >= 5.000 PE, Vandbehandling",null,null,null,null,null,"",""]
["Indløb med riste, Konstruktioner","PE",60,0,0,0,0,0]
["Indløb med riste, Mek/EL","PE",20,0,0,0,0,0]
["Indløb med riste, SRO","PE",10,0,0,0,0,0]
["Sand- og fedtfang, Kontruktioner","PE",60,0,0,0,0,0]
["Sand- og fedtfang, Mek/EL","PE",20,0,0,0,0,0]
["Sand- og fedtfang, SRO","PE",10,0,0,0,0,0]
["Forklaring, Konstruktioner","PE",60,0,0,0,0,0]
["Forklaring, Mek/EL","PE",20,0,0,0,0,0]
["Forklaring, SRO","PE",10,0,0,0,0,0]
["Beluftningstanke, Konstruktioner","PE",60,0,0,0,0,0]
["Beluftningstanke, Mek/EL","PE",20,0,0,0,0,0]
["Beluftningstanke, SRO","PE",10,0,0,0,0,0]
["Efterklaringstanke, Konstruktioner","PE",60,0,0,0,0,0]
["Efterklaringstanke, Mek/El","PE",20,0,0,0,0,0]
["Efterklaringstanke, SRO","PE",10,0,0,0,0,0]
["Efterbehandlingsanlæg (sandfilter), Konstruktioner","PE",60,0,0,0,0,0]
["Efterbehandlingsanlæg (sandfilter), Mek/EL","PE",20,0,0,0,0,0]
["Efterbehandlingsanlæg (sandfilter), SRO","PE",10,0,0,0,0,0]
["Renseanlæg >= 5.000 PE, Slambehandling",null,null,null,null,null,"",""]
["Forafvanding, slam, Konstruktion","PE",60,0,0,0,0,0]
["Forafvanding, slam, Mek/EL","PE",20,0,0,0,0,0]
["Forafvanding, slam, SRO","PE",10,0,0,0,0,0]
["Rådnetanke, slam, Konstruktioner","PE",60,0,0,0,0,0]
["Rådnetanke, slam, Mek/EL","PE",20,0,0,0,0,0]
["Rådnetanke, slam, SRO","PE",10,0,0,0,0,0]
["Gasdisponering, Konstruktioner","PE",60,0,0,0,0,0]
["Gasdisponering, Mek/EL","PE",20,0,0,0,0,0]
["Gasdisponering, SRO","PE",10,0,0,0,0,0]
["Gasdisponering - elproduktionsanlæg, Konstruktioner","PE",60,0,0,0,0,0]
["Gasdisponering - elproduktionsanlæg, Mek/EL","PE",20,0,0,0,0,0]
["Gasdisponering - elproduktionsanlæg, SRO","PE",10,0,0,0,0,0]
["Gasrensning - Aktivt kulfilter","m3/t",15,0,0,0,0,0]
["Gasrensning - Biologisk skrubber","m3/t",15,0,0,0,0,0]
["Opgraderingsanlæg - Membran","m3/t",15,0,0,0,0,0]
["Varmeproduktionsanlæg","m3/t",15,0,0,0,0,0]
["Slutafvanding, slam - lavteknologisk (slambede), Konstruktioner","PE",60,0,0,0,0,0]
["Slutafvanding, slam - lavteknologisk (slambede), Mek/EL","PE",20,0,0,0,0,0]
["Slutafvanding, slam - lavteknologisk (slambede), SRO","PE",10,0,0,0,0,0]
["Slutafvanding, slam - højteknologisk (centrifuger), Konstruktioner","PE",60,0,0,0,0,0]
["Slutafvanding, slam - højteknologisk (centrifuger), Mek/El","PE",20,0,0,0,0,0]
["Slutafvanding, slam - højteknologisk (centrifuger), SRO","PE",10,0,0,0,0,0]
["Renseanlæg >= 5.000 PE, Slamdisponering",null,null,null,null,null,"",""]
["Slutdisponering, slam - lavteknologisk (slammineralisering), Konstruktioner","PE",60,0,0,0,0,0]
["Slutdisponering, slam - lavteknologisk (slammineralisering), Mek/EL","PE",20,0,0,0,0,0]
["Slutdisponering, slam - lavteknologisk (slammineralisering), SRO","PE",10,0,0,0,0,0]
["Slutdisponering, slam - højteknologisk (slamtørring), Konstruktioner","PE",60,0,0,0,0,0]
["Slutdisponering, slam - højteknologisk (slamtørring), Mek/EL","PE",20,0,0,0,0,0]
["Slutdisponering, slam - højteknologisk (slamtørring), SRO","PE",10,0,0,0,0,0]
["Slutdisponering, slam - højteknologisk (slamtørring og -forbrænding), Konstruktioner","PE",60,0,0,0,0,0]
["Slutdisponering, slam - højteknologisk (slamtørring og -forbrænding), Mek/EL","PE",20,0,0,0,0,0]
["Slutdisponering, slam - højteknologisk (slamtørring og -forbrænding), SRO","PE",10,0,0,0,{"$f":"IF(D387=\"\",IF(E387>0,\"Ny data\",IF(E387=\"\",\"\",0)),IF(D387=0,IF(E387=0,0,\"Ny data\"),(E387-D387)/D387))","v":0},{"$f":"IF(E387=\"\",IF(F387>0,\"Ny data\",IF(F387=\"\",\"\",0)),IF(E387=0,IF(F387=0,0,\"Ny data\"),(F387-E387)/E387))","v":0}]
["Renseanlæg 8",null,null,null,null,null,"",""]
["Mindre renseanlæg",null,null,null,null,null,"",""]
["Mindre renseanlæg < 5.000 PE","PE",40,0,0,0,0,0]
["Renseanlæg >= 5.000 PE, Vandbehandling",null,null,null,null,null,"",""]
["Indløb med riste, Konstruktioner","PE",60,0,0,0,0,0]
["Indløb med riste, Mek/EL","PE",20,0,0,0,0,0]
["Indløb med riste, SRO","PE",10,0,0,0,0,0]
["Sand- og fedtfang, Kontruktioner","PE",60,0,0,0,0,0]
["Sand- og fedtfang, Mek/EL","PE",20,0,0,0,0,0]
["Sand- og fedtfang, SRO","PE",10,0,0,0,0,0]
["Forklaring, Konstruktioner","PE",60,0,0,0,0,0]
["Forklaring, Mek/EL","PE",20,0,0,0,0,0]
["Forklaring, SRO","PE",10,0,0,0,0,0]
["Beluftningstanke, Konstruktioner","PE",60,0,0,0,0,0]
["Beluftningstanke, Mek/EL","PE",20,0,0,0,0,0]
["Beluftningstanke, SRO","PE",10,0,0,0,0,0]
["Efterklaringstanke, Konstruktioner","PE",60,0,0,0,0,0]
["Efterklaringstanke, Mek/El","PE",20,0,0,0,0,0]
["Efterklaringstanke, SRO","PE",10,0,0,0,0,0]
["Efterbehandlingsanlæg (sandfilter), Konstruktioner","PE",60,0,0,0,0,0]
["Efterbehandlingsanlæg (sandfilter), Mek/EL","PE",20,0,0,0,0,0]
["Efterbehandlingsanlæg (sandfilter), SRO","PE",10,0,0,0,0,0]
["Renseanlæg >= 5.000 PE, Slambehandling",null,null,null,null,null,"",""]
["Forafvanding, slam, Konstruktion","PE",60,0,0,0,0,0]
["Forafvanding, slam, Mek/EL","PE",20,0,0,0,0,0]
["Forafvanding, slam, SRO","PE",10,0,0,0,0,0]
["Rådnetanke, slam, Konstruktioner","PE",60,0,0,0,0,0]
["Rådnetanke, slam, Mek/EL","PE",20,0,0,0,0,0]
["Rådnetanke, slam, SRO","PE",10,0,0,0,0,0]
["Gasdisponering, Konstruktioner","PE",60,0,0,0,0,0]
["Gasdisponering, Mek/EL","PE",20,0,0,0,0,0]
["Gasdisponering, SRO","PE",10,0,0,0,0,0]
["Gasdisponering - elproduktionsanlæg, Konstruktioner","PE",60,0,0,0,0,0]
["Gasdisponering - elproduktionsanlæg, Mek/EL","PE",20,0,0,0,0,0]
["Gasdisponering - elproduktionsanlæg, SRO","PE",10,0,0,0,0,0]
["Gasrensning - Aktivt kulfilter","m3/t",15,0,0,0,0,0]
["Gasrensning - Biologisk skrubber","m3/t",15,0,0,0,0,0]
["Opgraderingsanlæg - Membran","m3/t",15,0,0,0,0,0]
["Varmeproduktionsanlæg","m3/t",15,0,0,0,0,0]
["Slutafvanding, slam - lavteknologisk (slambede), Konstruktioner","PE",60,0,0,0,0,0]
["Slutafvanding, slam - lavteknologisk (slambede), Mek/EL","PE",20,0,0,0,0,0]
["Slutafvanding, slam - lavteknologisk (slambede), SRO","PE",10,0,0,0,0,0]
["Slutafvanding, slam - højteknologisk (centrifuger), Konstruktioner","PE",60,0,0,0,0,0]
["Slutafvanding, slam - højteknologisk (centrifuger), Mek/El","PE",20,0,0,0,0,0]
["Slutafvanding, slam - højteknologisk (centrifuger), SRO","PE",10,0,0,0,0,0]
["Renseanlæg >= 5.000 PE, Slamdisponering",null,null,null,null,null,"",""]
["Slutdisponering, slam - lavteknologisk (slammineralisering), Konstruktioner","PE",60,0,0,0,0,0]
["Slutdisponering, slam - lavteknologisk (slammineralisering), Mek/EL","PE",20,0,0,0,0,0]
["Slutdisponering, slam - lavteknologisk (slammineralisering), SRO","PE",10,0,0,0,0,0]
["Slutdisponering, slam - højteknologisk (slamtørring), Konstruktioner","PE",60,0,0,0,0,0]
["Slutdisponering, slam - højteknologisk (slamtørring), Mek/EL","PE",20,0,0,0,0,0]
["Slutdisponering, slam - højteknologisk (slamtørring), SRO","PE",10,0,0,0,0,0]
["Slutdisponering, slam - højteknologisk (slamtørring og -forbrænding), Konstruktioner","PE",60,0,0,0,0,0]
["Slutdisponering, slam - højteknologisk (slamtørring og -forbrænding), Mek/EL","PE",20,0,0,0,0,0]
["Slutdisponering, slam - højteknologisk (slamtørring og -forbrænding), SRO","PE",10,0,0,0,0,0]
["Renseanlæg 9",null,null,null,null,null,"",""]
["Mindre renseanlæg",null,null,null,null,null,"",""]
["Mindre renseanlæg < 5.000 PE","PE",40,0,0,0,0,0]
["Renseanlæg >= 5.000 PE, Vandbehandling",null,null,null,null,null,"",""]
["Indløb med riste, Konstruktioner","PE",60,0,0,0,0,0]
["Indløb med riste, Mek/EL","PE",20,0,0,0,0,0]
["Indløb med riste, SRO","PE",10,0,0,0,0,0]
["Sand- og fedtfang, Kontruktioner","PE",60,0,0,0,0,0]
["Sand- og fedtfang, Mek/EL","PE",20,0,0,0,{"$f":"IF(D451=\"\",IF(E451>0,\"Ny data\",IF(E451=\"\",\"\",0)),IF(D451=0,IF(E451=0,0,\"Ny data\"),(E451-D451)/D451))","v":0},{"$f":"IF(E451=\"\",IF(F451>0,\"Ny data\",IF(F451=\"\",\"\",0)),IF(E451=0,IF(F451=0,0,\"Ny data\"),(F451-E451)/E451))","v":0}]
["Sand- og fedtfang, SRO","PE",10,0,0,0,0,0]
["Forklaring, Konstruktioner","PE",60,0,0,0,0,0]
["Forklaring, Mek/EL","PE",20,0,0,0,0,0]
["Forklaring, SRO","PE",10,0,0,0,0,0]
["Beluftningstanke, Konstruktioner","PE",60,0,0,0,0,0]
["Beluftningstanke, Mek/EL","PE",20,0,0,0,0,0]
["Beluftningstanke, SRO","PE",10,0,0,0,0,0]
["Efterklaringstanke, Konstruktioner","PE",60,0,0,0,0,0]
["Efterklaringstanke, Mek/El","PE",20,0,0,0,0,0]
["Efterklaringstanke, SRO","PE",10,0,0,0,0,0]
["Efterbehandlingsanlæg (sandfilter), Konstruktioner","PE",60,0,0,0,0,0]
["Efterbehandlingsanlæg (sandfilter), Mek/EL","PE",20,0,0,0,0,0]
["Efterbehandlingsanlæg (sandfilter), SRO","PE",10,0,0,0,0,0]
["Renseanlæg >= 5.000 PE, Slambehandling",null,null,null,null,null,"",""]
["Forafvanding, slam, Konstruktion","PE",60,0,0,0,0,0]
["Forafvanding, slam, Mek/EL","PE",20,0,0,0,0,0]
["Forafvanding, slam, SRO","PE",10,0,0,0,0,0]
["Rådnetanke, slam, Konstruktioner","PE",60,0,0,0,0,0]
["Rådnetanke, slam, Mek/EL","PE",20,0,0,0,0,0]
["Rådnetanke, slam, SRO","PE",10,0,0,0,0,0]
["Gasdisponering, Konstruktioner","PE",60,0,0,0,0,0]
["Gasdisponering, Mek/EL","PE",20,0,0,0,0,0]
["Gasdisponering, SRO","PE",10,0,0,0,0,0]
["Gasdisponering - elproduktionsanlæg, Konstruktioner","PE",60,0,0,0,0,0]
["Gasdisponering - elproduktionsanlæg, Mek/EL","PE",20,0,0,0,0,0]
["Gasdisponering - elproduktionsanlæg, SRO","PE",10,0,0,0,0,0]
["Gasrensning - Aktivt kulfilter","m3/t",15,0,0,0,0,0]
["Gasrensning - Biologisk skrubber","m3/t",15,0,0,0,0,0]
["Opgraderingsanlæg - Membran","m3/t",15,0,0,0,0,0]
["Varmeproduktionsanlæg","m3/t",15,0,0,0,0,0]
["Slutafvanding, slam - lavteknologisk (slambede), Konstruktioner","PE",60,0,0,0,0,0]
["Slutafvanding, slam - lavteknologisk (slambede), Mek/EL","PE",20,0,0,0,0,0]
["Slutafvanding, slam - lavteknologisk (slambede), SRO","PE",10,0,0,0,0,0]
["Slutafvanding, slam - højteknologisk (centrifuger), Konstruktioner","PE",60,0,0,0,0,0]
["Slutafvanding, slam - højteknologisk (centrifuger), Mek/El","PE",20,0,0,0,0,0]
["Slutafvanding, slam - højteknologisk (centrifuger), SRO","PE",10,0,0,0,0,0]
["Renseanlæg >= 5.000 PE, Slamdisponering",null,null,null,null,null,"",""]
["Slutdisponering, slam - lavteknologisk (slammineralisering), Konstruktioner","PE",60,0,0,0,0,0]
["Slutdisponering, slam - lavteknologisk (slammineralisering), Mek/EL","PE",20,0,0,0,0,0]
["Slutdisponering, slam - lavteknologisk (slammineralisering), SRO","PE",10,0,0,0,0,0]
["Slutdisponering, slam - højteknologisk (slamtørring), Konstruktioner","PE",60,0,0,0,0,0]
["Slutdisponering, slam - højteknologisk (slamtørring), Mek/EL","PE",20,0,0,0,0,0]
["Slutdisponering, slam - højteknologisk (slamtørring), SRO","PE",10,0,0,0,0,0]
["Slutdisponering, slam - højteknologisk (slamtørring og -forbrænding), Konstruktioner","PE",60,0,0,0,0,0]
["Slutdisponering, slam - højteknologisk (slamtørring og -forbrænding), Mek/EL","PE",20,0,0,0,0,0]
["Slutdisponering, slam - højteknologisk (slamtørring og -forbrænding), SRO","PE",10,0,0,0,0,0]
["Renseanlæg 10",null,null,null,null,null,"",""]
["Mindre renseanlæg",null,null,null,null,null,"",""]
["Mindre renseanlæg < 5.000 PE","PE",40,0,0,0,0,0]
["Renseanlæg >= 5.000 PE, Vandbehandling",null,null,null,null,null,"",""]
["Indløb med riste, Konstruktioner","PE",60,0,0,0,0,0]
["Indløb med riste, Mek/EL","PE",20,0,0,0,0,0]
["Indløb med riste, SRO","PE",10,0,0,0,0,0]
["Sand- og fedtfang, Kontruktioner","PE",60,0,0,0,0,0]
["Sand- og fedtfang, Mek/EL","PE",20,0,0,0,0,0]
["Sand- og fedtfang, SRO","PE",10,0,0,0,0,0]
["Forklaring, Konstruktioner","PE",60,0,0,0,0,0]
["Forklaring, Mek/EL","PE",20,0,0,0,0,0]
["Forklaring, SRO","PE",10,0,0,0,0,0]
["Beluftningstanke, Konstruktioner","PE",60,0,0,0,0,0]
["Beluftningstanke, Mek/EL","PE",20,0,0,0,0,0]
["Beluftningstanke, SRO","PE",10,0,0,0,0,0]
["Efterklaringstanke, Konstruktioner","PE",60,0,0,0,0,0]
["Efterklaringstanke, Mek/El","PE",20,0,0,0,{"$f":"IF(D515=\"\",IF(E515>0,\"Ny data\",IF(E515=\"\",\"\",0)),IF(D515=0,IF(E515=0,0,\"Ny data\"),(E515-D515)/D515))","v":0},{"$f":"IF(E515=\"\",IF(F515>0,\"Ny data\",IF(F515=\"\",\"\",0)),IF(E515=0,IF(F515=0,0,\"Ny data\"),(F515-E515)/E515))","v":0}]
["Efterklaringstanke, SRO","PE",10,0,0,0,0,0]
["Efterbehandlingsanlæg (sandfilter), Konstruktioner","PE",60,0,0,0,0,0]
["Efterbehandlingsanlæg (sandfilter), Mek/EL","PE",20,0,0,0,0,0]
["Efterbehandlingsanlæg (sandfilter), SRO","PE",10,0,0,0,0,0]
["Renseanlæg >= 5.000 PE, Slambehandling",null,null,null,null,null,"",""]
["Forafvanding, slam, Konstruktion","PE",60,0,0,0,0,0]
["Forafvanding, slam, Mek/EL","PE",20,0,0,0,0,0]
["Forafvanding, slam, SRO","PE",10,0,0,0,0,0]
["Rådnetanke, slam, Konstruktioner","PE",60,0,0,0,0,0]
["Rådnetanke, slam, Mek/EL","PE",20,0,0,0,0,0]
["Rådnetanke, slam, SRO","PE",10,0,0,0,0,0]
["Gasdisponering, Konstruktioner","PE",60,0,0,0,0,0]
["Gasdisponering, Mek/EL","PE",20,0,0,0,0,0]
["Gasdisponering, SRO","PE",10,0,0,0,0,0]
["Gasdisponering - elproduktionsanlæg, Konstruktioner","PE",60,0,0,0,0,0]
["Gasdisponering - elproduktionsanlæg, Mek/EL","PE",20,0,0,0,0,0]
["Gasdisponering - elproduktionsanlæg, SRO","PE",10,0,0,0,0,0]
["Gasrensning - Aktivt kulfilter","m3/t",15,0,0,0,0,0]
["Gasrensning - Biologisk skrubber","m3/t",15,0,0,0,0,0]
["Opgraderingsanlæg - Membran","m3/t",15,0,0,0,0,0]
["Varmeproduktionsanlæg","m3/t",15,0,0,0,0,0]
["Slutafvanding, slam - lavteknologisk (slambede), Konstruktioner","PE",60,0,0,0,0,0]
["Slutafvanding, slam - lavteknologisk (slambede), Mek/EL","PE",20,0,0,0,0,0]
["Slutafvanding, slam - lavteknologisk (slambede), SRO","PE",10,0,0,0,0,0]
["Slutafvanding, slam - højteknologisk (centrifuger), Konstruktioner","PE",60,0,0,0,0,0]
["Slutafvanding, slam - højteknologisk (centrifuger), Mek/El","PE",20,0,0,0,0,0]
["Slutafvanding, slam - højteknologisk (centrifuger), SRO","PE",10,0,0,0,0,0]
["Renseanlæg >= 5.000 PE, Slamdisponering",null,null,null,null,null,"",""]
["Slutdisponering, slam - lavteknologisk (slammineralisering), Konstruktioner","PE",60,0,0,0,0,0]
["Slutdisponering, slam - lavteknologisk (slammineralisering), Mek/EL","PE",20,0,0,0,0,0]
["Slutdisponering, slam - lavteknologisk (slammineralisering), SRO","PE",10,0,0,0,0,0]
["Slutdisponering, slam - højteknologisk (slamtørring), Konstruktioner","PE",60,0,0,0,0,0]
["Slutdisponering, slam - højteknologisk (slamtørring), Mek/EL","PE",20,0,0,0,0,0]
["Slutdisponering, slam - højteknologisk (slamtørring), SRO","PE",10,0,0,0,0,0]
["Slutdisponering, slam - højteknologisk (slamtørring og -forbrænding), Konstruktioner","PE",60,0,0,0,0,0]
["Slutdisponering, slam - højteknologisk (slamtørring og -forbrænding), Mek/EL","PE",20,0,0,0,0,0]
["Slutdisponering, slam - højteknologisk (slamtørring og -forbrænding), SRO","PE",20,0,0,0,0,0]

{"sheet":"Distributionsanlæg","index":1,"n_rows":318,"n_cols":9,"rows_kept":318,"cut":false,"hidden":false,"merged":[[0,0,1,0],[0,1,1,1],[0,2,1,2],[0,3,1,3],[0,8,1,8],[0,4,1,4],[0,5,1,5],[0,6,1,6],[0,7,1,7]]}
["Distributionsanlæg","Enhed","Standard-levetid","Samlet mængde per 31/12-2022","Samlet mængde per 31/12-2023","Samlet mængde per 31/12-2024","Afvigelse 2022-2023","Afvigelse 2023-2024","Bemærkninger"]
[]
["Ledningsnet - Land",null,null,null,null,null,{"$f":"IF(D3=\"\",IF(E3>0,\"Ny data\",IF(E3=\"\",\"\",0)),IF(D3=0,IF(E3=0,0,\"Ny data\"),(E3-D3)/D3))","v":""},{"$f":"IF(E3=\"\",IF(F3>0,\"Ny data\",IF(F3=\"\",\"\",0)),IF(E3=0,IF(F3=0,0,\"Ny data\"),(F3-E3)/E3))","v":""}]
["Ledningsnet ≤ Ø 200 mm ","meter",75,123495.67502415007,125192,125192,1.3735905937744026E-2,0]
["Ø 200 mm < Ledningsnet ≤ Ø 500 mm ","meter",75,64786.290408469125,65676,65676,1.3732991747503545E-2,0]
["Ø 500 mm < Ledningsnet ≤ Ø 800 mm","meter",75,9778.7926340925806,9913,9913,1.3724328854210658E-2,0]
["Ø 800 mm < Ledningsnet ≤ Ø 1000 mm","meter",75,1441.266874054545,1461,1461,1.3691514250891022E-2,0]
["Ø 1000 mm < Ledningsnet ≤ Ø 1200 mm","meter",75,1569.2746441846396,1591,1591,1.3844202412795919E-2,0]
["Ø 1200 mm < Ledningsnet ≤ Ø 1600 mm","meter",75,31.049052718589305,31,31,-1.5798458984849096E-3,0]
["Ledningsnet > Ø 1600 mm (rørbassiner og transportledninger)","meter",75,36.325362330898599,37,37,1.857208368511026E-2,0]
["Strømpeforing ≤ Ø 200 mm","meter",50,1909.7099999999998,1910,1910,1.5185551732995638E-4,0]
["Strømpeforing Ø 200 mm < Ledningsnet ≤ Ø 500 mm","meter",50,4636.2049999999999,4636,4636,-4.421719919630975E-5,0]
["Strømpeforing Ø 500 mm < Ledningsnet ≤ Ø 800 mm","meter",50,36.344999999999999,36,36,-9.4923648369789199E-3,0]
["Strømpeforing Ø 800 mm < Ledningsnet ≤ Ø 1000 mm","meter",50,17.975000000000001,18,18,1.3908205841445661E-3,0]
["Strømpeforing Ø 1000 mm < Ledningsnet ≤ Ø 1200 mm","meter",50,0,0,0,0,0]
["Strømpeforing Ø 1200 mm < Ledningsnet ≤ Ø 1600 mm","meter",50,0,0,0,0,0]
["Ledningsnet - By",null,null,null,null,null,"",""]
["Ledningsnet ≤ Ø 200 mm ","meter",75,211813.65859979426,215588,216865,1.7819159657390508E-2,5.9233352505705323E-3]
["Ø 200 mm < Ledningsnet ≤ Ø 500 mm ","meter",75,129484.27345990305,131792,132002,1.7822446529088137E-2,1.5934199344421513E-3]
["Ø 500 mm < Ledningsnet ≤ Ø 800 mm","meter",75,24580.412695912877,25018,25070,1.7802276532154524E-2,2.0785034774962029E-3]
["Ø 800 mm < Ledningsnet ≤ Ø 1000 mm","meter",75,9240.6376519607475,9405,9579,1.7786905431182762E-2,1.8500797448165868E-2]
["Ø 1000 mm < Ledningsnet ≤ Ø 1200 mm","meter",75,1728.2817372644834,1759,2172,1.7773874521255645E-2,0.23479249573621375,"Faktisk opmålte mængder"]
["Ø 1200 mm < Ledningsnet ≤ Ø 1600 mm","meter",75,1229.4111490496502,1251,1251,1.7560318179185373E-2,0]
["Ledningsnet > Ø 1600 mm (rørbassiner og transportledninger)","meter",75,1522.7507061161957,1550,1550,1.7894783285508448E-2,0]
["Strømpeforing ≤ Ø 200 mm","meter",50,3198.2799999999997,3198,3726,-8.7547056542812188E-5,0.16510318949343339]
["Strømpeforing Ø 200 mm < Ledningsnet ≤ Ø 500 mm","meter",50,7413.1249999999973,7413,9363,-1.6861984655225909E-5,0.26305139619587209,"Faktisk opmålte mængder"]
["Strømpeforing Ø 500 mm < Ledningsnet ≤ Ø 800 mm","meter",50,141.91499999999999,142,329,5.9895007574962457E-4,1.3169014084507042,"Faktisk opmålte mængder"]
["Strømpeforing Ø 800 mm < Ledningsnet ≤ Ø 1000 mm","meter",50,434.875,435,445,2.8743891922966368E-4,2.2988505747126436E-2]
["Strømpeforing Ø 1000 mm < Ledningsnet ≤ Ø 1200 mm","meter",50,171,171,171,0,0]
["Strømpeforing Ø 1200 mm < Ledningsnet ≤ Ø 1600 mm","meter",50,0,0,0,0,0]
["Ledningsnet - City",null,null,null,null,null,"",""]
["Ledningsnet ≤ Ø 200 mm ","meter",75,24454.859999999982,24791,24791,1.3745325060131926E-2,0]
["Ø 200 mm < Ledningsnet ≤ Ø 500 mm ","meter",75,18749.990000000005,19008,19008,1.3760540672288076E-2,0]
["Ø 500 mm < Ledningsnet ≤ Ø 800 mm","meter",75,2649.19,2686,2686,1.3894813131560947E-2,0]
["Ø 800 mm < Ledningsnet ≤ Ø 1000 mm","meter",75,845.80000000000007,857,857,1.324190115866627E-2,0]
["Ø 1000 mm < Ledningsnet ≤ Ø 1200 mm","meter",75,291.99,296,296,1.3733347032432586E-2,0]
["Ø 1200 mm < Ledningsnet ≤ Ø 1600 mm","meter",75,274.20000000000005,278,278,1.3858497447118723E-2,0]
["Ledningsnet > Ø 1600 mm (rørbassiner og transportledninger)","meter",75,115.01,117,117,1.7302843231023345E-2,0]
["Strømpeforing ≤ Ø 200 mm","meter",50,0,0,0,0,0]
["Strømpeforing Ø 200 mm < Ledningsnet ≤ Ø 500 mm","meter",50,121.08,121,121,-6.6072018500163776E-4,0]
["Strømpeforing Ø 500 mm < Ledningsnet ≤ Ø 800 mm","meter",50,1747.69,1748,1748,1.7737699477593017E-4,0]
["Strømpeforing Ø 800 mm < Ledningsnet ≤ Ø 1000 mm","meter",50,40.72,41,41,6.8762278978389277E-3,0]
["Strømpeforing Ø 1000 mm < Ledningsnet ≤ Ø 1200 mm","meter",50,0,0,0,0,0]
["Strømpeforing Ø 1200 mm < Ledningsnet ≤ Ø 1600 mm","meter",50,0,0,0,0,0]
["Ledningsnet - Indre city",null,null,null,null,null,"",""]
["Ledningsnet ≤ Ø 200 mm ","meter",75,0,0,0,0,0]
["Ø 200 mm < Ledningsnet ≤ Ø 500 mm ","meter",75,0,0,0,0,0]
["Ø 500 mm < Ledningsnet ≤ Ø 800 mm","meter",75,0,0,0,0,0]
["Ø 800 mm < Ledningsnet ≤ Ø 1000 mm","meter",75,0,0,0,0,0]
["Ø 1000 mm < Ledningsnet ≤ Ø 1200 mm","meter",75,0,0,0,0,0]
["Ø 1200 mm < Ledningsnet ≤ Ø 1600 mm","meter",75,0,0,0,0,0]
["Ledningsnet > Ø 1600 mm (rørbassiner og transportledninger)","meter",75,0,0,0,0,0]
["Strømpeforing ≤ Ø 200 mm","meter",50,0,0,0,0,0]
["Strømpeforing Ø 200 mm < Ledningsnet ≤ Ø 500 mm","meter",50,0,0,0,0,0]
["Strømpeforing Ø 500 mm < Ledningsnet ≤ Ø 800 mm","meter",50,0,0,0,0,0]
["Strømpeforing Ø 800 mm < Ledningsnet ≤ Ø 1000 mm","meter",50,0,0,0,0,0]
["Strømpeforing Ø 1000 mm < Ledningsnet ≤ Ø 1200 mm","meter",50,0,0,0,0,0]
["Strømpeforing Ø 1200 mm < Ledningsnet ≤ Ø 1600 mm","meter",50,0,0,0,0,0]
["Brønde og stik, ledningsnet - Land",null,null,null,null,null,"",""]
["Brønde","stk.",75,1883,1802,1810,-4.3016463090812536E-2,4.4395116537180911E-3]
["Stik","stk.",75,2095,2231,2252,6.4916467780429588E-2,9.4128193635141192E-3]
["Brønde og stik, ledningsnet - By",null,null,null,null,null,"",""]
["Brønde","stk.",75,6270,6147,6169,-1.9617224880382776E-2,3.5789816170489668E-3]
["Stik","stk.",75,17986,18235,18264,1.3844100967419103E-2,1.5903482314230874E-3]
["Brønde og stik, ledningsnet - City",null,null,null,null,null,"",""]
["Brønde","stk.",75,591,441,447,-0.25380710659898476,1.3605442176870748E-2,"Faktisk opmålte mængder"]
["Stik","stk.",75,2357,2374,2376,{"$f":"IF(D67=\"\",IF(E67>0,\"Ny data\",IF(E67=\"\",\"\",0)),IF(D67=0,IF(E67=0,0,\"Ny data\"),(E67-D67)/D67))","v":7.2125583368689008E-3},{"$f":"IF(E67=\"\",IF(F67>0,\"Ny data\",IF(F67=\"\",\"\",0)),IF(E67=0,IF(F67=0,0,\"Ny data\"),(F67-E67)/E67))","v":8.4245998315080029E-4}]
["Brønde og stik, ledningsnet - Indre city",null,null,null,null,null,"",""]
["Brønde","stk.",75,0,0,0,0,0]
["Stik","stk.",75,0,0,0,0,0]
["Små pumpestationer (<100 l/s) inkl. SRO-anlæg - Land",null,null,null,null,null,"",""]
["Tryksatte minipumpestationer (husstandssystemer)","stk.",30,6,6,6,0,0]
["Pumpestationer i brønde (< 6,25 m2), Konstruktioner","stk.",50,13,14,14,7.6923076923076927E-2,0]
["Pumpestationer i brønde (< 6,25 m2), Mek/EL","stk.",20,19,20,20,5.2631578947368418E-2,0]
["Pumpestationer i brønde (< 6,25 m2), SRO","stk.",10,13,14,14,7.6923076923076927E-2,0]
["Pumpestationer m. overbygning (< 20 m2), Konstruktioner","stk.",50,29,30,30,3.4482758620689655E-2,0]
["Pumpestationer m. overbygning (< 20 m2), Mek/EL","stk.",20,56,58,58,3.5714285714285712E-2,0]
["Pumpestationer m. overbygning (< 20 m2), SRO","stk.",10,29,30,30,3.4482758620689655E-2,0]
["Pumpestationer i underjordiske bygværker (<50 m2), Konstruktioner","stk.",50,3,3,3,0,0]
["Pumpestationer i underjordiske bygværker (<50 m2), Mek/El","stk.",20,7,7,7,0,0]
["Pumpestationer i underjordiske bygværker (<50 m2), SRO","stk.",10,3,3,3,0,0]
["Små pumpestationer (<100 l/s) inkl. SRO-anlæg - By",null,null,null,null,null,"",""]
["Tryksatte minipumpestationer (husstandssystemer)","stk.",30,0,0,0,0,0]
["Pumpestationer i brønde (< 6,25 m2), Konstruktioner","stk.",50,23,23,23,0,0]
["Pumpestationer i brønde (< 6,25 m2), Mek/EL","stk.",20,38,38,38,0,0]
["Pumpestationer i brønde (< 6,25 m2), SRO","stk.",10,23,23,23,0,0]
["Pumpestationer m. overbygning (< 20 m2), Konstruktioner","stk.",50,11,11,11,0,0]
["Pumpestationer m. overbygning (< 20 m2), Mek/EL","stk.",20,22,22,22,0,0]
["Pumpestationer m. overbygning (< 20 m2), SRO","stk.",10,11,11,11,0,0]
["Pumpestationer i underjordiske bygværker (<50 m2), Konstruktioner","stk.",50,2,2,2,0,0]
["Pumpestationer i underjordiske bygværker (<50 m2), Mek/El","stk.",20,2,2,2,0,0]
["Pumpestationer i underjordiske bygværker (<50 m2), SRO","stk.",10,2,2,2,0,0]
["Små pumpestationer (<100 l/s) inkl. SRO-anlæg - City",null,null,null,null,null,"",""]
["Tryksatte minipumpestationer (husstandssystemer)","stk.",30,0,0,0,0,0]
["Pumpestationer i brønde (< 6,25 m2), Konstruktioner","stk.",50,0,0,0,0,0]
["Pumpestationer i brønde (< 6,25 m2), Mek/EL","stk.",20,0,0,0,0,0]
["Pumpestationer i brønde (< 6,25 m2), SRO","stk.",10,0,0,0,0,0]
["Pumpestationer m. overbygning (< 20 m2), Konstruktioner","stk.",50,0,0,0,0,0]
["Pumpestationer m. overbygning (< 20 m2), Mek/EL","stk.",20,0,0,0,0,0]
["Pumpestationer m. overbygning (< 20 m2), SRO","stk.",10,0,0,0,0,0]
["Pumpestationer i underjordiske bygværker (<50 m2), Konstruktioner","stk.",50,0,0,0,0,0]
["Pumpestationer i underjordiske bygværker (<50 m2), Mek/El","stk.",20,0,0,0,0,0]
["Pumpestationer i underjordiske bygværker (<50 m2), SRO","stk.",10,0,0,0,0,0]
["Små pumpestationer (<100 l/s) inkl. SRO-anlæg - Indre city",null,null,null,null,null,"",""]
["Tryksatte minipumpestationer (husstandssystemer)","stk.",30,0,0,0,0,0]
["Pumpestationer i brønde (< 6,25 m2), Konstruktioner","stk.",50,0,0,0,0,0]
["Pumpestationer i brønde (< 6,25 m2), Mek/EL","stk.",20,0,0,0,0,0]
["Pumpestationer i brønde (< 6,25 m2), SRO","stk.",10,0,0,0,0,0]
["Pumpestationer m. overbygning (< 20 m2), Konstruktioner","stk.",50,0,0,0,0,0]
["Pumpestationer m. overbygning (< 20 m2), Mek/EL","stk.",20,0,0,0,0,0]
["Pumpestationer m. overbygning (< 20 m2), SRO","stk.",10,0,0,0,0,0]
["Pumpestationer i underjordiske bygværker (<50 m2), Konstruktioner","stk.",50,0,0,0,0,0]
["Pumpestationer i underjordiske bygværker (<50 m2), Mek/El","stk.",20,0,0,0,0,0]
["Pumpestationer i underjordiske bygværker (<50 m2), SRO","stk.",10,0,0,0,0,0]
["Store pumpestationer: inkl. SRO-anlæg - Land",null,null,null,null,null,"",""]
["Kælder","m2",75,30,30,30,0,0]
["Pumpeinstallation Miljøklasse A (100-300 l/s) - Mek/EL","stk.",20,11,11,11,0,0]
["Pumpeinstallation Miljøklasse A (100-300 l/s) - SRO","stk.",10,5,5,5,0,0]
["Pumpeinstallation Miljøklasse A (300-600 l/s) - Mek/EL","stk.",20,0,0,0,0,0]
["Pumpeinstallation Miljøklasse A (300-600 l/s) - SRO","stk.",10,0,0,0,0,0]
["Pumpeinstallation Miljøklasse A (600-1.000 l/s) - Mek/EL","stk.",20,0,0,0,0,0]
["Pumpeinstallation Miljøklasse A (600-1.000 l/s) - SRO","stk.",10,0,0,0,0,0]
["Pumpeinstallation Miljøklasse A (1.000-1.500 l/s) - Mek/EL","stk.",20,0,0,0,0,0]
["Pumpeinstallation Miljøklasse A (1.000-1.500 l/s) - SRO","stk.",10,0,0,0,0,0]
["Pumpeinstallation Miljøklasse B (100-300 l/s) - Mek/EL","stk.",20,0,0,0,0,0]
["Pumpeinstallation Miljøklasse B (100-300 l/s) - SRO","stk.",10,0,0,0,0,0]
["Pumpeinstallation Miljøklasse B (300-600 l/s) - Mek/EL","stk.",20,0,0,0,0,0]
["Pumpeinstallation Miljøklasse B (300-600 l/s) - SRO","stk.",10,0,0,0,0,0]
["Pumpeinstallation Miljøklasse B (600-1.000 l/s) - Mek/EL","stk.",20,0,0,0,0,0]
["Pumpeinstallation Miljøklasse B (600-1.000 l/s) - SRO","stk.",10,0,0,0,0,0]
["Pumpeinstallation Miljøklasse B (1.000-1.500 l/s) - Mek/EL","stk.",20,0,0,0,{"$f":"IF(D131=\"\",IF(E131>0,\"Ny data\",IF(E131=\"\",\"\",0)),IF(D131=0,IF(E131=0,0,\"Ny data\"),(E131-D131)/D131))","v":0},{"$f":"IF(E131=\"\",IF(F131>0,\"Ny data\",IF(F131=\"\",\"\",0)),IF(E131=0,IF(F131=0,0,\"Ny data\"),(F131-E131)/E131))","v":0}]
["Pumpeinstallation Miljøklasse B (1.000-1.500 l/s) - SRO","stk.",10,0,0,0,0,0]
["Overbygning","m2",75,32,32,32,0,0]
["Store pumpestationer: inkl. SRO-anlæg - By",null,null,null,null,null,"",""]
["Kælder","m2",75,12,12,12,0,0]
["Pumpeinstallation Miljøklasse A (100-300 l/s) - Mek/EL","stk.",20,9,9,9,0,0]
["Pumpeinstallation Miljøklasse A (100-300 l/s) - SRO","stk.",10,4,4,4,0,0]
["Pumpeinstallation Miljøklasse A (300-600 l/s) - Mek/EL","stk.",20,3,3,3,0,0]
["Pumpeinstallation Miljøklasse A (300-600 l/s) - SRO","stk.",10,1,1,1,0,0]
["Pumpeinstallation Miljøklasse A (600-1.000 l/s) - Mek/EL","stk.",20,0,0,0,0,0]
["Pumpeinstallation Miljøklasse A (600-1.000 l/s) - SRO","stk.",10,0,0,0,0,0]
["Pumpeinstallation Miljøklasse A (1.000-1.500 l/s) - Mek/EL","stk.",20,0,0,0,0,0]
["Pumpeinstallation Miljøklasse A (1.000-1.500 l/s) - SRO","stk.",10,0,0,0,0,0]
["Pumpeinstallation Miljøklasse B (100-300 l/s) - Mek/EL","stk.",20,0,0,0,0,0]
["Pumpeinstallation Miljøklasse B (100-300 l/s) - SRO","stk.",10,0,0,0,0,0]
["Pumpeinstallation Miljøklasse B (300-600 l/s) - Mek/EL","stk.",20,0,0,0,0,0]
["Pumpeinstallation Miljøklasse B (300-600 l/s) - SRO","stk.",10,0,0,0,0,0]
["Pumpeinstallation Miljøklasse B (600-1.000 l/s) - Mek/EL","stk.",20,0,0,0,0,0]
["Pumpeinstallation Miljøklasse B (600-1.000 l/s) - SRO","stk.",10,0,0,0,0,0]
["Pumpeinstallation Miljøklasse B (1.000-1.500 l/s) - Mek/EL","stk.",20,0,0,0,0,0]
["Pumpeinstallation Miljøklasse B (1.000-1.500 l/s) - SRO","stk.",10,0,0,0,0,0]
["Overbygning ","m2",75,50,50,50,0,0]
["Store pumpestationer: inkl. SRO-anlæg - City",null,null,null,null,null,"",""]
["Kælder","m2",75,0,0,0,0,0]
["Pumpeinstallation Miljøklasse A (100-300 l/s) - Mek/EL","stk.",20,0,0,0,0,0]
["Pumpeinstallation Miljøklasse A (100-300 l/s) - SRO","stk.",10,0,0,0,0,0]
["Pumpeinstallation Miljøklasse A (300-600 l/s) - Mek/EL","stk.",20,0,0,0,0,0]
["Pumpeinstallation Miljøklasse A (300-600 l/s) - SRO","stk.",10,0,0,0,0,0]
["Pumpeinstallation Miljøklasse A (600-1.000 l/s) - Mek/EL","stk.",20,0,0,0,0,0]
["Pumpeinstallation Miljøklasse A (600-1.000 l/s) - SRO","stk.",10,0,0,0,0,0]
["Pumpeinstallation Miljøklasse A (1.000-1.500 l/s) - Mek/EL","stk.",20,0,0,0,0,0]
["Pumpeinstallation Miljøklasse A (1.000-1.500 l/s) - SRO","stk.",10,0,0,0,0,0]
["Pumpeinstallation Miljøklasse B (100-300 l/s) - Mek/EL","stk.",20,0,0,0,0,0]
["Pumpeinstallation Miljøklasse B (100-300 l/s) - SRO","stk.",10,0,0,0,0,0]
["Pumpeinstallation Miljøklasse B (300-600 l/s) - Mek/EL","stk.",20,0,0,0,0,0]
["Pumpeinstallation Miljøklasse B (300-600 l/s) - SRO","stk.",10,0,0,0,0,0]
["Pumpeinstallation Miljøklasse B (600-1.000 l/s) - Mek/EL","stk.",20,0,0,0,0,0]
["Pumpeinstallation Miljøklasse B (600-1.000 l/s) - SRO","stk.",10,0,0,0,0,0]
["Pumpeinstallation Miljøklasse B (1.000-1.500 l/s) - Mek/EL","stk.",20,0,0,0,0,0]
["Pumpeinstallation Miljøklasse B (1.000-1.500 l/s) - SRO","stk.",10,0,0,0,0,0]
["Overbygning ","m2",75,0,0,0,0,0]
["Store pumpestationer: inkl. SRO-anlæg - Indre city",null,null,null,null,null,"",""]
["Kælder","m2",75,0,0,0,0,0]
["Pumpeinstallation Miljøklasse A (100-300 l/s) - Mek/EL","stk.",20,0,0,0,0,0]
["Pumpeinstallation Miljøklasse A (100-300 l/s) - SRO","stk.",10,0,0,0,0,0]
["Pumpeinstallation Miljøklasse A (300-600 l/s) - Mek/EL","stk.",20,0,0,0,0,0]
["Pumpeinstallation Miljøklasse A (300-600 l/s) - SRO","stk.",10,0,0,0,0,0]
["Pumpeinstallation Miljøklasse A (600-1.000 l/s) - Mek/EL","stk.",20,0,0,0,0,0]
["Pumpeinstallation Miljøklasse A (600-1.000 l/s) - SRO","stk.",10,0,0,0,0,0]
["Pumpeinstallation Miljøklasse A (1.000-1.500 l/s) - Mek/EL","stk.",20,0,0,0,0,0]
["Pumpeinstallation Miljøklasse A (1.000-1.500 l/s) - SRO","stk.",10,0,0,0,0,0]
["Pumpeinstallation Miljøklasse B (100-300 l/s) - Mek/EL","stk.",20,0,0,0,0,0]
["Pumpeinstallation Miljøklasse B (100-300 l/s) - SRO","stk.",10,0,0,0,0,0]
["Pumpeinstallation Miljøklasse B (300-600 l/s) - Mek/EL","stk.",20,0,0,0,0,0]
["Pumpeinstallation Miljøklasse B (300-600 l/s) - SRO","stk.",10,0,0,0,0,0]
["Pumpeinstallation Miljøklasse B (600-1.000 l/s) - Mek/EL","stk.",20,0,0,0,0,0]
["Pumpeinstallation Miljøklasse B (600-1.000 l/s) - SRO","stk.",10,0,0,0,0,0]
["Pumpeinstallation Miljøklasse B (1.000-1.500 l/s) - Mek/EL","stk.",20,0,0,0,0,0]
["Pumpeinstallation Miljøklasse B (1.000-1.500 l/s) - SRO","stk.",10,0,0,0,0,0]
["Overbygning","m2",75,0,0,0,0,0]
["Overløbsbygværker - Land",null,null,null,null,null,"",""]
["Kælder (< 7 m2) ","stk.",75,12,12,12,0,0]
["Kælder (7 - 20 m2) ","m2",75,10,10,10,0,0]
["Kælder (20 - 30 m2)","m2",75,0,0,0,0,0]
["Installationer (mindre end 7 m2)","stk.",20,12,12,12,{"$f":"IF(D195=\"\",IF(E195>0,\"Ny data\",IF(E195=\"\",\"\",0)),IF(D195=0,IF(E195=0,0,\"Ny data\"),(E195-D195)/D195))","v":0},{"$f":"IF(E195=\"\",IF(F195>0,\"Ny data\",IF(F195=\"\",\"\",0)),IF(E195=0,IF(F195=0,0,\"Ny data\"),(F195-E195)/E195))","v":0}]
["Installationer, Miljøklasse A. (7-20 m2) - Mek/EL","stk.",20,1,1,1,0,0]
["Installationer, Miljøklasse A. (7-20 m2) - SRO","stk.",10,0,0,0,0,0]
["Installationer, Miljøklasse A. (20-30 m2) - Mek/EL","stk.",20,0,0,0,0,0]
["Installationer, Miljøklasse A. (20-30 m2) - SRO","stk.",10,0,0,0,0,0]
["Installationer, Miljøklasse B. (7-20 m2) - Mek/EL","stk.",20,0,0,0,0,0]
["Installationer, Miljøklasse B. (7-20 m2) - SRO","stk.",10,0,0,0,0,0]
["Installationer, Miljøklasse B. (20-30 m2) - Mek/EL","stk.",20,0,0,0,0,0]
["Installationer, Miljøklasse B. (20-30 m2) - SRO","stk.",10,0,0,0,0,0]
["Overbygning","stk.",75,0,0,0,0,0]
["Overløbsbygværker - By",null,null,null,null,null,"",""]
["Kælder (< 7 m2) ","stk.",75,12,12,12,0,0]
["Kælder (7 - 20 m2) ","m2",75,{"$f":"17.5*3","v":52.5},{"$f":"17.5*3","v":52.5},{"$f":"17.5*3","v":52.5},0,0]
["Kælder (20 - 30 m2)","m2",75,0,0,0,0,0]
["Installationer (mindre end 7 m2)","stk.",20,12,12,12,0,0]
["Installationer, Miljøklasse A. (7-20 m2) - Mek/EL","stk.",20,3,3,3,0,0]
["Installationer, Miljøklasse A. (7-20 m2) - SRO","stk.",10,3,3,3,0,0]
["Installationer, Miljøklasse A. (20-30 m2) - Mek/EL","stk.",20,0,0,0,0,0]
["Installationer, Miljøklasse A. (20-30 m2) - SRO","stk.",10,0,0,0,0,0]
["Installationer, Miljøklasse B. (7-20 m2) - Mek/EL","stk.",20,0,0,0,0,0]
["Installationer, Miljøklasse B. (7-20 m2) - SRO","stk.",10,0,0,0,0,0]
["Installationer, Miljøklasse B. (20-30 m2) - Mek/EL","stk.",20,0,0,0,0,0]
["Installationer, Miljøklasse B. (20-30 m2) - SRO","stk.",10,0,0,0,0,0]
["Overbygning","stk.",75,0,0,0,0,0]
["Overløbsbygværker - City",null,null,null,null,null,"",""]
["Kælder (< 7 m2) ","stk.",75,0,0,0,0,0]
["Kælder (7 - 20 m2) ","m2",75,0,0,0,0,0]
["Kælder (20 - 30 m2)","m2",75,0,0,0,0,0]
["Installationer (mindre end 7 m2)","stk.",20,0,0,0,0,0]
["Installationer, Miljøklasse A. (7-20 m2) - Mek/EL","stk.",20,0,0,0,0,0]
["Installationer, Miljøklasse A. (7-20 m2) - SRO","stk.",10,0,0,0,0,0]
["Installationer, Miljøklasse A. (20-30 m2) - Mek/EL","stk.",20,0,0,0,0,0]
["Installationer, Miljøklasse A. (20-30 m2) - SRO","stk.",10,0,0,0,0,0]
["Installationer, Miljøklasse B. (7-20 m2) - Mek/EL","stk.",20,0,0,0,0,0]
["Installationer, Miljøklasse B. (7-20 m2) - SRO","stk.",10,0,0,0,0,0]
["Installationer, Miljøklasse B. (20-30 m2) - Mek/EL","stk.",20,0,0,0,0,0]
["Installationer, Miljøklasse B. (20-30 m2) - SRO","stk.",10,0,0,0,0,0]
["Overbygning (efter beliggenhed) ","stk.",75,0,0,0,0,0]
["Overløbsbygværker - Indre city",null,null,null,null,null,"",""]
["Kælder (< 7 m2) ","stk.",75,0,0,0,0,0]
["Kælder (7 - 20 m2) ","m2",75,0,0,0,0,0]
["Kælder (20 - 30 m2)","m2",75,0,0,0,0,0]
["Installationer (mindre end 7 m2)","stk.",20,0,0,0,0,0]
["Installationer, Miljøklasse A. (7-20 m2) - Mek/EL","stk.",20,0,0,0,0,0]
["Installationer, Miljøklasse A. (7-20 m2) - SRO","stk.",10,0,0,0,0,0]
["Installationer, Miljøklasse A. (20-30 m2) - Mek/EL","stk.",20,0,0,0,0,0]
["Installationer, Miljøklasse A. (20-30 m2) - SRO","stk.",10,0,0,0,0,0]
["Installationer, Miljøklasse B. (7-20 m2) - Mek/EL","stk.",20,0,0,0,0,0]
["Installationer, Miljøklasse B. (7-20 m2) - SRO","stk.",10,0,0,0,0,0]
["Installationer, Miljøklasse B. (20-30 m2) - Mek/EL","stk.",20,0,0,0,0,0]
["Installationer, Miljøklasse B. (20-30 m2) - SRO","stk.",10,0,0,0,0,0]
["Overbygning","stk.",75,0,0,0,0,0]
["Forsinkelsesbassiner - Land",null,null,null,null,null,"",""]
["Forsinkelsesbassiner, lukkede uden automatisk rensning og SRO (mindre end 1.000 m3)","m³",50,610,610,610,0,0]
["Forsinkelsesbassiner, lukkede med automatisk rensning og SRO (mindre end 1.000 m3) - Konstruktioner","m³",75,0,0,0,0,0]
["Forsinkelsesbassiner, lukkede med automatisk rensning og SRO (mindre end 1.000 m3) - Mek/EL","m³",20,0,0,0,0,0]
["Forsinkelsesbassiner, lukkede med automatisk rensning og SRO (mindre end 1.000 m3) - SRO ","m³",10,0,0,0,0,0]
["Forsinkelsesbassiner, lukkede (1.000-4.000 m3) - Konstruktioner","m³",75,0,0,0,0,0]
["Forsinkelsesbassiner, lukkede (1.000-4.000 m3) - Mek/EL","m³",20,0,0,0,0,0]
["Forsinkelsesbassiner, lukkede (1.000-4.000 m3) - SRO","m³",10,0,0,0,0,0]
["Forsinkelsesbassiner, lukkede (4.000-10.000 m3) - Konstruktioner","m³",75,0,0,0,0,0]
["Forsinkelsesbassiner, lukkede (4.000-10.000 m3) - Mek/EL","m³",20,0,0,0,0,0]
["Forsinkelsesbassiner, lukkede (4.000-10.000 m3) - SRO","m³",10,0,0,0,0,0]
["Forsinkelsesbassiner, lukkede (større end 10.000 m3) - Konstruktioner","m³",75,0,0,0,0,0]
["Forsinkelsesbassiner, lukkede (større end 10.000 m3) - Mek/EL","m³",20,0,0,0,{"$f":"IF(D259=\"\",IF(E259>0,\"Ny data\",IF(E259=\"\",\"\",0)),IF(D259=0,IF(E259=0,0,\"Ny data\"),(E259-D259)/D259))","v":0},{"$f":"IF(E259=\"\",IF(F259>0,\"Ny data\",IF(F259=\"\",\"\",0)),IF(E259=0,IF(F259=0,0,\"Ny data\"),(F259-E259)/E259))","v":0}]
["Forsinkelsesbassiner, lukkede (større end 10.000 m3) - SRO","m³",10,0,0,0,0,0]
["Forsinkelsesbassiner - By",null,null,null,null,null,"",""]
["Forsinkelsesbassiner, lukkede uden automatisk rensning og SRO (mindre end 1.000 m3)","m³",50,60,60,60,0,0]
["Forsinkelsesbassiner, lukkede med automatisk rensning og SRO (mindre end 1.000 m3) - Konstruktioner","m³",75,1180,1180,1180,0,0]
["Forsinkelsesbassiner, lukkede med automatisk rensning og SRO (mindre end 1.000 m3) - Mek/EL","m³",20,1180,1180,1180,0,0]
["Forsinkelsesbassiner, lukkede med automatisk rensning og SRO (mindre end 1.000 m3) - SRO ","m³",10,500,500,500,0,0]
["Forsinkelsesbassiner, lukkede (1.000-4.000 m3) - Konstruktioner","m³",75,3000,3000,3000,0,0]
["Forsinkelsesbassiner, lukkede (1.000-4.000 m3) - Mek/EL","m³",20,3000,3000,3000,0,0]
["Forsinkelsesbassiner, lukkede (1.000-4.000 m3) - SRO","m³",10,0,0,0,0,0]
["Forsinkelsesbassiner, lukkede (4.000-10.000 m3) - Konstruktioner","m³",75,0,0,0,0,0]
["Forsinkelsesbassiner, lukkede (4.000-10.000 m3) - Mek/EL","m³",20,0,0,0,0,0]
["Forsinkelsesbassiner, lukkede (4.000-10.000 m3) - SRO","m³",10,0,0,0,0,0]
["Forsinkelsesbassiner, lukkede (større end 10.000 m3) - Konstruktioner","m³",75,0,0,0,0,0]
["Forsinkelsesbassiner, lukkede (større end 10.000 m3) - Mek/EL","m³",20,0,0,0,0,0]
["Forsinkelsesbassiner, lukkede (større end 10.000 m3) - SRO","m³",10,0,0,0,0,0]
["Forsinkelsesbassiner - City",null,null,null,null,null,"",""]
["Forsinkelsesbassiner, lukkede uden automatisk rensning og SRO (mindre end 1.000 m3)","m³",50,0,0,0,0,0]
["Forsinkelsesbassiner, lukkede med automatisk rensning og SRO (mindre end 1.000 m3) - Konstruktioner","m³",75,0,0,0,0,0]
["Forsinkelsesbassiner, lukkede med automatisk rensning og SRO (mindre end 1.000 m3) - Mek/EL","m³",20,0,0,0,0,0]
["Forsinkelsesbassiner, lukkede med automatisk rensning og SRO (mindre end 1.000 m3) - SRO ","m³",10,0,0,0,0,0]
["Forsinkelsesbassiner, lukkede (1.000-4.000 m3) - Konstruktioner","m³",75,0,0,0,0,0]
["Forsinkelsesbassiner, lukkede (1.000-4.000 m3) - Mek/EL","m³",20,0,0,0,0,0]
["Forsinkelsesbassiner, lukkede (1.000-4.000 m3) - SRO","m³",10,0,0,0,0,0]
["Forsinkelsesbassiner, lukkede (4.000-10.000 m3) - Konstruktioner","m³",75,0,0,0,0,0]
["Forsinkelsesbassiner, lukkede (4.000-10.000 m3) - Mek/EL","m³",20,0,0,0,0,0]
["Forsinkelsesbassiner, lukkede (4.000-10.000 m3) - SRO","m³",10,0,0,0,0,0]
["Forsinkelsesbassiner, lukkede (større end 10.000 m3) - Konstruktioner","m³",75,0,0,0,0,0]
["Forsinkelsesbassiner, lukkede (større end 10.000 m3) - Mek/EL","m³",20,0,0,0,0,0]
["Forsinkelsesbassiner, lukkede (større end 10.000 m3) - SRO","m³",10,0,0,0,0,0]
["Forsinkelsesbassiner - Indre city",null,null,null,null,null,"",""]
["Forsinkelsesbassiner, lukkede uden automatisk rensning og SRO (mindre end 1.000 m3)","m³",50,0,0,0,0,0]
["Forsinkelsesbassiner, lukkede med automatisk rensning og SRO (mindre end 1.000 m3) - Konstruktioner","m³",75,0,0,0,0,0]
["Forsinkelsesbassiner, lukkede med automatisk rensning og SRO (mindre end 1.000 m3) - Mek/EL","m³",20,0,0,0,0,0]
["Forsinkelsesbassiner, lukkede med automatisk rensning og SRO (mindre end 1.000 m3) - SRO ","m³",10,0,0,0,0,0]
["Forsinkelsesbassiner, lukkede (1.000-4.000 m3) - Konstruktioner","m³",75,0,0,0,0,0]
["Forsinkelsesbassiner, lukkede (1.000-4.000 m3) - Mek/EL","m³",20,0,0,0,0,0]
["Forsinkelsesbassiner, lukkede (1.000-4.000 m3) - SRO","m³",10,0,0,0,0,0]
["Forsinkelsesbassiner, lukkede (4.000-10.000 m3) - Konstruktioner","m³",75,0,0,0,0,0]
["Forsinkelsesbassiner, lukkede (4.000-10.000 m3) - Mek/EL","m³",20,0,0,0,0,0]
["Forsinkelsesbassiner, lukkede (4.000-10.000 m3) - SRO","m³",10,0,0,0,0,0]
["Forsinkelsesbassiner, lukkede (større end 10.000 m3) - Konstruktioner","m³",75,0,0,0,0,0]
["Forsinkelsesbassiner, lukkede (større end 10.000 m3) - Mek/EL","m³",20,0,0,0,0,0]
["Forsinkelsesbassiner, lukkede (større end 10.000 m3) - SRO","m³",10,0,0,0,0,0]
["Sparebassin/Laguner/Jordbassiner - Land",null,null,null,null,null,"",""]
["Jordbassin Klasse A og B","m³",50,40420,40420,40420,0,0]
["Indløb-/udløbsarrangement","stk.",75,46,46,46,0,0]
["Andre bygninger (tekniske installationer, målere mv.)","m2",75,0,0,0,0,0]
["Sparebassin/Laguner/Jordbassiner - By",null,null,null,null,null,"",""]
["Jordbassin Klasse A og B","m³",50,34818,34818,34818,0,0]
["Indløb-/udløbsarrangement","stk.",75,30,30,30,0,0]
["Andre bygninger (tekniske installationer, målere mv.)","m2",75,0,0,0,0,0]
["Sparebassin/Laguner/Jordbassiner - City",null,null,null,null,null,"",""]
["Jordbassin Klasse A og B","m³",50,0,0,0,0,0]
["Indløb-/udløbsarrangement","stk.",75,0,0,0,0,0]
["Andre bygninger (tekniske installationer, målere mv.)","m2",75,0,0,0,0,0]
["Sparebassin/Laguner/Jordbassiner - Indre city",null,null,null,null,null,"",""]
["Jordbassin Klasse A og B","m³",50,0,0,0,0,0]
["Indløb-/udløbsarrangement","stk.",75,0,0,0,0,0]
["Andre bygninger (tekniske installationer, målere mv.)","m2",75,0,0,0,0,0]

{"sheet":"Fællesfunktionsanlæg","index":2,"n_rows":13,"n_cols":9,"rows_kept":13,"cut":false,"hidden":false,"merged":[[0,0,1,0],[0,1,1,1],[0,2,1,2],[0,3,1,3],[0,8,1,8],[0,4,1,4],[0,5,1,5],[0,6,1,6],[0,7,1,7]]}
["Fællesfunktionsanlæg","Enhed","Standard-levetid","Samlet mængde per 31/12-2022","Samlet mængde per 31/12-2023","Samlet mængde per 31/12-2024","Afvigelse 2022-2023","Afvigelse 2023-2024","Bemærkninger"]
[]
["Andre",null,null,null,null,null,{"$f":"IF(D3=\"\",IF(E3>0,\"Ny data\",IF(E3=\"\",\"\",0)),IF(D3=0,IF(E3=0,0,\"Ny data\"),(E3-D3)/D3))","v":""},{"$f":"IF(E3=\"\",IF(F3>0,\"Ny data\",IF(F3=\"\",\"\",0)),IF(E3=0,IF(F3=0,0,\"Ny data\"),(F3-E3)/E3))","v":""}]
["Administrationbygninger","m2",75,625,625,625,0,0]
["Arbejdsplads og kontor","stk.",5,11,11,12,0,9.0909090909090912E-2]
["Køretøjer, personbil","stk.",5,1,2,2,1,0,"faktisk antal"]
["Køretøjer, små lastvogne (< 3.500 kg.)","stk.",5,8,8,8,0,0]
["Køretøjer, store lastvogne (> 3.500 kg.)","stk.",5,1,1,1,0,0]
["Køretøjer, entreprenørmaskiner","stk.",5,2,2,2,0,0]
["Slamsugere","stk.",5,0,0,0,0,0]
["Værksteder, garager","m2",75,961,961,961,0,0]
["Solcelleanlæg eksl. Inverter","kWp",25,{"$f":"214+111","v":325},{"$f":"214+111","v":325},{"$f":"214+111","v":325},0,0]
["Inverter til solcelleanlæg","kWp",10,{"$f":"214+111","v":325},{"$f":"214+111","v":325},{"$f":"214+111","v":325},0,0]